[Event "Early-Titled-Tuesday-Blitz-April-02-2024"]
[Site "Chess.com"]
[Date "2024.04.02"]
[Round "1"]
[White "DonCiao"]
[Black "sathvikadiga"]
[Result "0-1"]
[WhiteElo "1998"]
[BlackElo "2560"]
[TimeControl "180+1"]
[EndTime "8:04:56 PDT"]
[Termination "sathvikadiga won by resignation"]

1. c4 {[%clk 0:02:54.3]} 1... Nf6 {[%clk 0:02:58.9]} 2. g3 {[%clk 0:02:52.5]}
2... g6 {[%clk 0:02:58.4]} 3. Bg2 {[%clk 0:02:51.6]} 3... Bg7 {[%clk 0:02:58.4]}
4. Nc3 {[%clk 0:02:52]} 4... O-O {[%clk 0:02:58.6]} 5. e4 {[%clk 0:02:52]} 5...
d6 {[%clk 0:02:59.2]} 6. Nge2 {[%clk 0:02:52]} 6... e5 {[%clk 0:02:57]} 7. O-O
{[%clk 0:02:49]} 7... Nh5 {[%clk 0:02:57]} 8. d3 {[%clk 0:02:48.3]} 8... f5
{[%clk 0:02:56.5]} 9. exf5 {[%clk 0:02:30.6]} 9... gxf5 {[%clk 0:02:57.4]} 10.
f4 {[%clk 0:02:30.2]} 10... Nc6 {[%clk 0:02:55.7]} 11. Be3 {[%clk 0:02:29.3]}
11... Be6 {[%clk 0:02:53.8]} 12. Qd2 {[%clk 0:02:27.3]} 12... Qd7 {[%clk
0:02:49.9]} 13. b3 {[%clk 0:02:26.7]} 13... Nd4 {[%clk 0:02:47.1]} 14. Rad1
{[%clk 0:02:22]} 14... c6 {[%clk 0:02:45.7]} 15. Bf2 {[%clk 0:02:21.8]} 15...
Rad8 {[%clk 0:02:44.1]} 16. Nxd4 {[%clk 0:02:21.4]} 16... exd4 {[%clk 0:02:43]}
17. Ne2 {[%clk 0:02:19.7]} 17... c5 {[%clk 0:02:43.6]} 18. b4 {[%clk 0:02:15.3]}
18... b6 {[%clk 0:02:42.5]} 19. b5 {[%clk 0:02:10.2]} 19... d5 {[%clk 0:02:42]}
20. cxd5 {[%clk 0:01:37]} 20... Bxd5 {[%clk 0:02:42.9]} 21. Bxd5+ {[%clk
0:01:34.4]} 21... Qxd5 {[%clk 0:02:42]} 22. Nc1 {[%clk 0:01:34.5]} 22... Rfe8
{[%clk 0:02:38]} 23. Rde1 {[%clk 0:01:32.5]} 23... Nf6 {[%clk 0:02:35]} 24.
Rxe8+ {[%clk 0:01:32.2]} 24... Rxe8 {[%clk 0:02:34.8]} 25. Re1 {[%clk
0:01:32.8]} 25... Rxe1+ {[%clk 0:02:31.9]} 26. Qxe1 {[%clk 0:01:32.3]} 26... Kf7
{[%clk 0:02:32.5]} 27. Qe5 {[%clk 0:01:30.8]} 27... Qxe5 {[%clk 0:02:29.2]} 28.
fxe5 {[%clk 0:01:30.3]} 28... Nd7 {[%clk 0:02:29.7]} 29. Ne2 {[%clk 0:01:23.9]}
29... Nxe5 {[%clk 0:02:28.6]} 30. Nf4 {[%clk 0:01:23.6]} 30... Bh6 {[%clk
0:02:28.3]} 31. Nd5 {[%clk 0:01:20.1]} 31... Nxd3 {[%clk 0:02:26.9]} 32. a4
{[%clk 0:01:18.5]} 32... Ke6 {[%clk 0:02:20.9]} 33. Nc7+ {[%clk 0:01:17.8]}
33... Kd6 {[%clk 0:02:19]} 34. Ne8+ {[%clk 0:01:16.8]} 34... Kd5 {[%clk
0:02:18.3]} 35. Nf6+ {[%clk 0:01:16.6]} 35... Kc4 {[%clk 0:02:18.5]} 36. Nxh7
{[%clk 0:01:15.8]} 36... Nxf2 {[%clk 0:02:14.8]} 37. Kxf2 {[%clk 0:01:15.2]}
37... Kc3 {[%clk 0:02:15.3]} 38. Nf6 {[%clk 0:01:12.1]} 38... d3 {[%clk
0:02:15.1]} 39. Nd5+ {[%clk 0:01:11.9]} 39... Kc2 {[%clk 0:02:14.2]} 40. h3
{[%clk 0:00:42.8]} 40... d2 {[%clk 0:02:13.9]} 0-1

[Event "Early-Titled-Tuesday-Blitz-April-02-2024"]
[Site "Chess.com"]
[Date "2024.04.02"]
[Round "1"]
[White "Tonychess32"]
[Black "LiamPutnam2008"]
[Result "0-1"]
[WhiteElo "2525"]
[BlackElo "2927"]
[TimeControl "180+1"]
[EndTime "8:04:58 PDT"]
[Termination "LiamPutnam2008 won by resignation"]

1. e4 {[%clk 0:03:00.9]} 1... c5 {[%clk 0:02:59.4]} 2. Nf3 {[%clk 0:03:00.2]}
2... e6 {[%clk 0:02:58.4]} 3. d4 {[%clk 0:02:59.6]} 3... cxd4 {[%clk 0:02:59.3]}
4. Nxd4 {[%clk 0:03:00]} 4... a6 {[%clk 0:02:59.5]} 5. Nc3 {[%clk 0:03:00.1]}
5... Qc7 {[%clk 0:02:59.8]} 6. Bd3 {[%clk 0:02:56.6]} 6... Nf6 {[%clk
0:02:56.5]} 7. Be3 {[%clk 0:02:47.9]} 7... Nc6 {[%clk 0:02:53.4]} 8. Nxc6 {[%clk
0:02:47.4]} 8... bxc6 {[%clk 0:02:48.8]} 9. O-O {[%clk 0:02:44.4]} 9... d5
{[%clk 0:02:49.5]} 10. exd5 {[%clk 0:02:42.7]} 10... cxd5 {[%clk 0:02:46.7]} 11.
h3 {[%clk 0:02:14.9]} 11... Be7 {[%clk 0:02:44.2]} 12. a4 {[%clk 0:01:39.3]}
12... O-O {[%clk 0:02:43.6]} 13. a5 {[%clk 0:01:39.5]} 13... Bb7 {[%clk
0:02:39.8]} 14. Bb6 {[%clk 0:01:39.1]} 14... Qc6 {[%clk 0:02:39.8]} 15. Be2
{[%clk 0:01:38.7]} 15... Nd7 {[%clk 0:02:35.5]} 16. Na4 {[%clk 0:01:34]} 16...
Rac8 {[%clk 0:02:33.9]} 17. c3 {[%clk 0:01:33.2]} 17... e5 {[%clk 0:02:30]} 18.
f3 {[%clk 0:01:11.6]} 18... Nxb6 {[%clk 0:02:28]} 19. axb6 {[%clk 0:01:08.1]}
19... Bc5+ {[%clk 0:02:27.4]} 20. Nxc5 {[%clk 0:01:01.9]} 20... Qxc5+ {[%clk
0:02:28.3]} 21. Kh1 {[%clk 0:01:02.2]} 21... Qxb6 {[%clk 0:02:28.6]} 22. Qd2
{[%clk 0:00:59.4]} 22... Rfd8 {[%clk 0:02:25.9]} 23. Ra3 {[%clk 0:00:39.1]}
23... h6 {[%clk 0:02:19.1]} 24. Rfa1 {[%clk 0:00:38.4]} 24... d4 {[%clk
0:02:13.9]} 25. cxd4 {[%clk 0:00:31.3]} 25... Rxd4 {[%clk 0:02:14.8]} 26. Qe3
{[%clk 0:00:28.7]} 26... Qxb2 {[%clk 0:02:14.7]} 27. Qxe5 {[%clk 0:00:28.7]}
27... Rd1+ {[%clk 0:02:14.5]} 28. Bxd1 {[%clk 0:00:19.9]} 28... Qxe5 {[%clk
0:02:15.4]} 29. Bb3 {[%clk 0:00:17.9]} 29... Bd5 {[%clk 0:02:11.9]} 30. Ra5
{[%clk 0:00:16.1]} 30... Rc5 {[%clk 0:02:12.6]} 31. Bxd5 {[%clk 0:00:10.1]}
31... Rxa5 {[%clk 0:02:11.3]} 32. Rxa5 {[%clk 0:00:08.9]} 32... Qe1+ {[%clk
0:02:12]} 0-1

[Event "Early-Titled-Tuesday-Blitz-April-02-2024"]
[Site "Chess.com"]
[Date "2024.04.02"]
[Round "1"]
[White "visa"]
[Black "KATPAH"]
[Result "0-1"]
[WhiteElo "2378"]
[BlackElo "2673"]
[TimeControl "180+1"]
[EndTime "8:05:08 PDT"]
[Termination "KATPAH won by resignation"]

1. Nf3 {[%clk 0:03:00.9]} 1... Nf6 {[%clk 0:02:59.4]} 2. b3 {[%clk 0:03:01]}
2... g6 {[%clk 0:03:00]} 3. Bb2 {[%clk 0:03:01.5]} 3... Bg7 {[%clk 0:03:00.9]}
4. g3 {[%clk 0:03:01.9]} 4... O-O {[%clk 0:03:00.9]} 5. Bg2 {[%clk 0:03:02.6]}
5... d5 {[%clk 0:03:01.5]} 6. c4 {[%clk 0:03:02.7]} 6... dxc4 {[%clk 0:03:00.8]}
7. bxc4 {[%clk 0:03:02.7]} 7... c5 {[%clk 0:03:01.7]} 8. O-O {[%clk 0:03:02.8]}
8... Nc6 {[%clk 0:03:02.2]} 9. Ne5 {[%clk 0:03:03.1]} 9... Nxe5 {[%clk
0:03:01.3]} 10. Bxe5 {[%clk 0:03:04]} 10... Ne8 {[%clk 0:02:49.6]} 11. Bxg7
{[%clk 0:03:03.2]} 11... Nxg7 {[%clk 0:02:50.5]} 12. Nc3 {[%clk 0:03:00.8]}
12... Rb8 {[%clk 0:02:50.4]} 13. d3 {[%clk 0:02:52]} 13... b6 {[%clk 0:02:50.6]}
14. Qa4 {[%clk 0:02:51.2]} 14... Qd7 {[%clk 0:02:45.6]} 15. Qxd7 {[%clk
0:02:42]} 15... Bxd7 {[%clk 0:02:46.5]} 16. Nd5 {[%clk 0:02:42.4]} 16... Rfe8
{[%clk 0:02:35.6]} 17. a4 {[%clk 0:02:41.4]} 17... Nf5 {[%clk 0:02:16.6]} 18. a5
{[%clk 0:02:39.9]} 18... b5 {[%clk 0:02:14.3]} 19. Nc7 {[%clk 0:02:29.5]} 19...
Red8 {[%clk 0:02:13.9]} 20. cxb5 {[%clk 0:02:21.2]} 20... Bxb5 {[%clk
0:02:12.1]} 21. Rfc1 {[%clk 0:01:58.9]} 21... Nd4 {[%clk 0:02:10.8]} 22. Rxc5
{[%clk 0:01:46.3]} 22... Nxe2+ {[%clk 0:01:57.6]} 23. Kh1 {[%clk 0:01:45.8]}
23... Bxd3 {[%clk 0:01:58.1]} 24. Nd5 {[%clk 0:01:33.6]} 24... Rd7 {[%clk
0:01:56.1]} 25. Re1 {[%clk 0:01:19.8]} 25... Rb5 {[%clk 0:01:46.6]} 26. Rc8+
{[%clk 0:01:11.6]} 26... Kg7 {[%clk 0:01:46.5]} 27. Nc7 {[%clk 0:01:05.8]} 27...
Rb1 {[%clk 0:01:35.9]} 28. Ne8+ {[%clk 0:00:50.6]} 28... Kh6 {[%clk 0:01:35.5]}
29. Rxb1 {[%clk 0:00:49]} 29... Bxb1 {[%clk 0:01:36.4]} 30. a6 {[%clk 0:00:41]}
30... Rd1+ {[%clk 0:01:34.7]} 31. Bf1 {[%clk 0:00:40.9]} 31... Be4+ {[%clk
0:01:34.6]} 0-1

[Event "Early-Titled-Tuesday-Blitz-April-02-2024"]
[Site "Chess.com"]
[Date "2024.04.02"]
[Round "1"]
[White "chessdjw"]
[Black "Aisen1011"]
[Result "1-0"]
[WhiteElo "2788"]
[BlackElo "2461"]
[TimeControl "180+1"]
[EndTime "8:05:10 PDT"]
[Termination "chessdjw won by checkmate"]

1. Nf3 {[%clk 0:02:56.7]} 1... d5 {[%clk 0:02:58.4]} 2. d4 {[%clk 0:02:53.6]}
2... Nf6 {[%clk 0:02:58.4]} 3. c4 {[%clk 0:02:51]} 3... c6 {[%clk 0:02:58.2]} 4.
g3 {[%clk 0:02:49.6]} 4... a6 {[%clk 0:02:54.7]} 5. Bg2 {[%clk 0:02:49.4]} 5...
b5 {[%clk 0:02:53.7]} 6. cxd5 {[%clk 0:02:39.8]} 6... cxd5 {[%clk 0:02:52.9]} 7.
O-O {[%clk 0:02:40.7]} 7... Bf5 {[%clk 0:02:41.6]} 8. a4 {[%clk 0:02:35.8]} 8...
b4 {[%clk 0:02:38.7]} 9. Nbd2 {[%clk 0:02:35.1]} 9... h6 {[%clk 0:02:34.6]} 10.
Nb3 {[%clk 0:02:21.8]} 10... e6 {[%clk 0:02:33.5]} 11. Bf4 {[%clk 0:02:17.5]}
11... Nbd7 {[%clk 0:02:25.9]} 12. Rc1 {[%clk 0:02:15.5]} 12... Rc8 {[%clk
0:02:24.4]} 13. Rxc8 {[%clk 0:02:03.8]} 13... Qxc8 {[%clk 0:02:17.6]} 14. Qc1
{[%clk 0:01:57.9]} 14... Qc2 {[%clk 0:01:35.9]} 15. Na5 {[%clk 0:01:40.2]} 15...
b3 {[%clk 0:01:27.4]} 16. Nxb3 {[%clk 0:01:28.7]} 16... Qxb3 {[%clk 0:00:30]}
17. Qc8+ {[%clk 0:01:24.5]} 17... Ke7 {[%clk 0:00:30.1]} 18. Bc7 {[%clk
0:01:25.2]} 18... Ne8 {[%clk 0:00:23.6]} 19. Qd8# {[%clk 0:01:22.9]} 1-0

[Event "Early-Titled-Tuesday-Blitz-April-02-2024"]
[Site "Chess.com"]
[Date "2024.04.02"]
[Round "1"]
[White "Zavgorodniy_Sergiy"]
[Black "Aleksandar-Topalov"]
[Result "1-0"]
[WhiteElo "2654"]
[BlackElo "2348"]
[TimeControl "180+1"]
[EndTime "8:05:10 PDT"]
[Termination "Zavgorodniy_Sergiy won by resignation"]

1. d4 {[%clk 0:02:59.7]} 1... e6 {[%clk 0:02:58]} 2. c4 {[%clk 0:02:59.9]} 2...
f5 {[%clk 0:02:57]} 3. Nf3 {[%clk 0:03:00]} 3... Nf6 {[%clk 0:02:56.9]} 4. g3
{[%clk 0:03:00.3]} 4... Be7 {[%clk 0:02:55.8]} 5. Bg2 {[%clk 0:03:00.6]} 5...
O-O {[%clk 0:02:54.6]} 6. O-O {[%clk 0:03:01.5]} 6... d6 {[%clk 0:02:53.4]} 7.
Nc3 {[%clk 0:03:01.2]} 7... Ne4 {[%clk 0:02:53.1]} 8. Nxe4 {[%clk 0:02:53.4]}
8... fxe4 {[%clk 0:02:52.2]} 9. Nd2 {[%clk 0:02:54.1]} 9... d5 {[%clk
0:02:51.1]} 10. f3 {[%clk 0:02:53.2]} 10... Nc6 {[%clk 0:02:45.8]} 11. e3 {[%clk
0:02:49.7]} 11... Bg5 {[%clk 0:02:06.3]} 12. Qe2 {[%clk 0:02:44.8]} 12... Nb4
{[%clk 0:01:37.1]} 13. fxe4 {[%clk 0:02:00.3]} 13... Nc2 {[%clk 0:01:35.8]} 14.
Rb1 {[%clk 0:01:51.6]} 14... Nxe3 {[%clk 0:01:26.6]} 15. Rxf8+ {[%clk
0:01:49.8]} 15... Qxf8 {[%clk 0:01:25.9]} 16. Nf3 {[%clk 0:01:49.7]} 16... Nxg2
{[%clk 0:00:29.3]} 17. Bxg5 {[%clk 0:01:48.1]} 17... h6 {[%clk 0:00:26.5]} 18.
Bd2 {[%clk 0:01:45.7]} 18... dxe4 {[%clk 0:00:24.6]} 19. Qxe4 {[%clk 0:01:46.6]}
19... Bd7 {[%clk 0:00:15.5]} 20. Ne5 {[%clk 0:01:37.2]} 1-0

[Event "Early-Titled-Tuesday-Blitz-April-02-2024"]
[Site "Chess.com"]
[Date "2024.04.02"]
[Round "1"]
[White "jumpingknight20"]
[Black "TheoSlade"]
[Result "1/2-1/2"]
[WhiteElo "2680"]
[BlackElo "2404"]
[TimeControl "180+1"]
[EndTime "8:05:13 PDT"]
[Termination "Game drawn by repetition"]

1. b3 {[%clk 0:03:00.9]} 1... e5 {[%clk 0:02:59.8]} 2. Bb2 {[%clk 0:03:00.1]}
2... Nc6 {[%clk 0:03:00.5]} 3. e3 {[%clk 0:02:59.9]} 3... d6 {[%clk 0:03:01]} 4.
d4 {[%clk 0:02:58.4]} 4... exd4 {[%clk 0:02:59.8]} 5. exd4 {[%clk 0:02:59.3]}
5... d5 {[%clk 0:03:00.3]} 6. Nf3 {[%clk 0:02:58.9]} 6... Nf6 {[%clk 0:02:59.3]}
7. Bb5 {[%clk 0:02:58.3]} 7... Bd6 {[%clk 0:02:57.6]} 8. O-O {[%clk 0:02:56.5]}
8... O-O {[%clk 0:02:58.1]} 9. Ne5 {[%clk 0:02:55.1]} 9... Bd7 {[%clk
0:02:52.7]} 10. Nxd7 {[%clk 0:02:52.2]} 10... Qxd7 {[%clk 0:02:53.4]} 11. Nd2
{[%clk 0:02:45]} 11... Rfe8 {[%clk 0:02:52.8]} 12. a3 {[%clk 0:02:42.8]} 12...
Ne4 {[%clk 0:02:51.1]} 13. Nxe4 {[%clk 0:02:29.7]} 13... Rxe4 {[%clk 0:02:48.2]}
14. Bd3 {[%clk 0:02:27.6]} 14... Rh4 {[%clk 0:02:38.2]} 15. h3 {[%clk
0:01:23.4]} 15... Rxh3 {[%clk 0:02:31.1]} 16. gxh3 {[%clk 0:01:13.1]} 16... Qxh3
{[%clk 0:02:32]} 17. Bxh7+ {[%clk 0:00:58.2]} 17... Kh8 {[%clk 0:02:12.6]} 18.
f4 {[%clk 0:00:58.3]} 18... Qg3+ {[%clk 0:02:02.1]} 19. Kh1 {[%clk 0:00:58.7]}
19... Qh3+ {[%clk 0:01:51.3]} 20. Kg1 {[%clk 0:00:59]} 20... Bxf4 {[%clk
0:01:14.8]} 21. Rxf4 {[%clk 0:00:48.3]} 21... Qg3+ {[%clk 0:01:15.1]} 22. Kh1
{[%clk 0:00:48.9]} 22... Qh3+ {[%clk 0:01:03]} 23. Kg1 {[%clk 0:00:49.3]} 23...
Qg3+ {[%clk 0:01:03.9]} 24. Kh1 {[%clk 0:00:50]} 24... Qh3+ {[%clk 0:01:04]} 25.
Kg1 {[%clk 0:00:50.5]} 1/2-1/2

[Event "Early-Titled-Tuesday-Blitz-April-02-2024"]
[Site "Chess.com"]
[Date "2024.04.02"]
[Round "1"]
[White "maciek_92"]
[Black "Zorbos"]
[Result "1-0"]
[WhiteElo "2847"]
[BlackElo "2494"]
[TimeControl "180+1"]
[EndTime "8:05:14 PDT"]
[Termination "maciek_92 won by checkmate"]

1. c4 {[%clk 0:03:00.9]} 1... e5 {[%clk 0:02:59.5]} 2. Nc3 {[%clk 0:03:01.3]}
2... Nf6 {[%clk 0:02:59.7]} 3. g3 {[%clk 0:03:01.4]} 3... c6 {[%clk 0:02:59.3]}
4. Nf3 {[%clk 0:03:00.8]} 4... e4 {[%clk 0:02:56.4]} 5. Nd4 {[%clk 0:03:01.2]}
5... d5 {[%clk 0:02:56.3]} 6. cxd5 {[%clk 0:03:01.8]} 6... cxd5 {[%clk
0:02:56.3]} 7. d3 {[%clk 0:03:01.6]} 7... exd3 {[%clk 0:02:52.3]} 8. Qxd3 {[%clk
0:03:02.5]} 8... Nc6 {[%clk 0:02:52.3]} 9. Bg2 {[%clk 0:03:01.2]} 9... Be7
{[%clk 0:02:33.8]} 10. O-O {[%clk 0:02:59.3]} 10... O-O {[%clk 0:02:34.1]} 11.
Bf4 {[%clk 0:02:52.6]} 11... Nxd4 {[%clk 0:02:10.2]} 12. Qxd4 {[%clk 0:02:52.6]}
12... Be6 {[%clk 0:02:10.3]} 13. Rfd1 {[%clk 0:02:52.7]} 13... Rc8 {[%clk
0:01:54.3]} 14. Nxd5 {[%clk 0:02:53.1]} 14... Nxd5 {[%clk 0:01:52]} 15. Bxd5
{[%clk 0:02:54]} 15... Bc5 {[%clk 0:01:30.6]} 16. Qe4 {[%clk 0:02:43.5]} 16...
Bxd5 {[%clk 0:01:16.3]} 17. Rxd5 {[%clk 0:02:44.4]} 17... Qb6 {[%clk 0:01:16.9]}
18. e3 {[%clk 0:02:28.8]} 18... Rfe8 {[%clk 0:01:10.8]} 19. Qf3 {[%clk
0:02:19.3]} 19... Qxb2 {[%clk 0:01:10.6]} 20. Rad1 {[%clk 0:02:20]} 20... Qxa2
{[%clk 0:01:06.3]} 21. h4 {[%clk 0:02:14.8]} 21... b5 {[%clk 0:01:05.8]} 22. h5
{[%clk 0:02:14]} 22... b4 {[%clk 0:00:51.8]} 23. h6 {[%clk 0:02:12.7]} 23... g6
{[%clk 0:00:51.5]} 24. Be5 {[%clk 0:02:10.4]} 24... Rxe5 {[%clk 0:00:28.3]} 25.
Rxe5 {[%clk 0:01:58]} 25... Bf8 {[%clk 0:00:28.4]} 26. Red5 {[%clk 0:01:54.7]}
26... b3 {[%clk 0:00:26.9]} 27. Qf6 {[%clk 0:01:44.1]} 27... b2 {[%clk
0:00:23.9]} 28. Rd8 {[%clk 0:01:44.3]} 28... b1=Q {[%clk 0:00:16.9]} 29. Qg7#
{[%clk 0:01:42.6]} 1-0

[Event "Early-Titled-Tuesday-Blitz-April-02-2024"]
[Site "Chess.com"]
[Date "2024.04.02"]
[Round "1"]
[White "tk22h"]
[Black "MarkusRagger"]
[Result "0-1"]
[WhiteElo "2401"]
[BlackElo "2714"]
[TimeControl "180+1"]
[EndTime "8:05:16 PDT"]
[Termination "MarkusRagger won by resignation"]

1. c4 {[%clk 0:02:57.9]} 1... e5 {[%clk 0:02:59.1]} 2. Nc3 {[%clk 0:02:57.5]}
2... Be7 {[%clk 0:02:58.1]} 3. Nf3 {[%clk 0:02:57.1]} 3... d6 {[%clk 0:02:57.3]}
4. d4 {[%clk 0:02:57.1]} 4... exd4 {[%clk 0:02:56.3]} 5. Nxd4 {[%clk 0:02:56.7]}
5... Nc6 {[%clk 0:02:54.2]} 6. Nxc6 {[%clk 0:02:56]} 6... bxc6 {[%clk 0:02:54]}
7. g3 {[%clk 0:02:56.7]} 7... Bf6 {[%clk 0:02:51.5]} 8. Qc2 {[%clk 0:02:56.1]}
8... Ne7 {[%clk 0:02:45.2]} 9. Bg2 {[%clk 0:02:52.5]} 9... O-O {[%clk
0:02:41.2]} 10. O-O {[%clk 0:02:51.8]} 10... Rb8 {[%clk 0:02:29.4]} 11. b3
{[%clk 0:02:51.5]} 11... Bf5 {[%clk 0:02:25.5]} 12. Qd2 {[%clk 0:02:51.2]} 12...
Qd7 {[%clk 0:02:15.9]} 13. Bb2 {[%clk 0:02:51]} 13... Bh3 {[%clk 0:02:15.7]} 14.
Ne4 {[%clk 0:02:45.9]} 14... Bxb2 {[%clk 0:02:13.6]} 15. Qxb2 {[%clk 0:02:45.6]}
15... Bxg2 {[%clk 0:02:13.4]} 16. Kxg2 {[%clk 0:02:45.5]} 16... c5 {[%clk
0:02:14]} 17. Kg1 {[%clk 0:02:43.6]} 17... Qe6 {[%clk 0:02:13.1]} 18. Nc3 {[%clk
0:02:41.8]} 18... Qxc4 {[%clk 0:02:11.5]} 19. Rac1 {[%clk 0:02:38]} 19... Qe6
{[%clk 0:02:10.1]} 20. Qd2 {[%clk 0:02:38]} 20... Rb4 {[%clk 0:02:06.7]} 21. e3
{[%clk 0:02:36.6]} 21... h5 {[%clk 0:02:06.2]} 22. Ne2 {[%clk 0:02:31.2]} 22...
h4 {[%clk 0:02:01.7]} 23. Nf4 {[%clk 0:02:30.9]} 23... Qf5 {[%clk 0:01:46.9]}
24. Rfd1 {[%clk 0:02:28.8]} 24... g5 {[%clk 0:01:35]} 25. Nd5 {[%clk 0:02:27.4]}
25... Nxd5 {[%clk 0:01:34.7]} 26. Qxd5 {[%clk 0:02:28.1]} 26... Qxd5 {[%clk
0:01:35]} 27. Rxd5 {[%clk 0:02:28.3]} 27... f6 {[%clk 0:01:35.3]} 28. Kg2 {[%clk
0:02:25.9]} 28... Kf7 {[%clk 0:01:34.5]} 29. f3 {[%clk 0:02:16.5]} 29... Ke6
{[%clk 0:01:33.2]} 30. e4 {[%clk 0:02:14.6]} 30... Rh8 {[%clk 0:01:31.3]} 31. g4
{[%clk 0:02:13.8]} 31... a5 {[%clk 0:01:30.5]} 32. Rd3 {[%clk 0:02:03.7]} 32...
Rhb8 {[%clk 0:01:23.9]} 33. h3 {[%clk 0:02:02.8]} 33... a4 {[%clk 0:01:24.1]}
34. Rcc3 {[%clk 0:02:02.7]} 34... axb3 {[%clk 0:01:20.6]} 35. axb3 {[%clk
0:02:02.2]} 35... Ra8 {[%clk 0:01:20.8]} 36. Kf2 {[%clk 0:02:00.2]} 36... Ra2+
{[%clk 0:01:19.9]} 37. Ke3 {[%clk 0:01:57.5]} 37... Rh2 {[%clk 0:01:19]} 38. Rd1
{[%clk 0:01:52.9]} 38... Rxh3 {[%clk 0:01:16.8]} 39. Ra1 {[%clk 0:01:52.9]}
39... Rh2 {[%clk 0:01:10]} 40. Ra7 {[%clk 0:01:51.2]} 40... Kd7 {[%clk
0:01:08.2]} 41. Ra8 {[%clk 0:01:51.1]} 41... Rb2 {[%clk 0:01:08]} 42. Rf8 {[%clk
0:01:48.2]} 42... Ke7 {[%clk 0:01:06.8]} 43. Rc8 {[%clk 0:01:47.4]} 43... Kd7
{[%clk 0:01:04.3]} 44. Rf8 {[%clk 0:01:47]} 44... R4xb3 {[%clk 0:01:04.4]} 45.
Kd3 {[%clk 0:01:46.6]} 45... Ke7 {[%clk 0:01:01.2]} 46. Rc8 {[%clk 0:01:45.8]}
46... Rxc3+ {[%clk 0:01:01.3]} 47. Kxc3 {[%clk 0:01:45.7]} 47... Rf2 {[%clk
0:01:02]} 48. Rxc7+ {[%clk 0:01:44.8]} 48... Ke6 {[%clk 0:01:02.4]} 0-1

[Event "Early-Titled-Tuesday-Blitz-April-02-2024"]
[Site "Chess.com"]
[Date "2024.04.02"]
[Round "1"]
[White "MikeWizard"]
[Black "ExtremeLearner"]
[Result "0-1"]
[WhiteElo "2171"]
[BlackElo "2579"]
[TimeControl "180+1"]
[EndTime "8:05:25 PDT"]
[Termination "ExtremeLearner won by resignation"]

1. d4 {[%clk 0:02:59.3]} 1... Nf6 {[%clk 0:03:00.1]} 2. c4 {[%clk 0:02:58.4]}
2... e6 {[%clk 0:03:00.8]} 3. Nf3 {[%clk 0:02:57.7]} 3... d5 {[%clk 0:03:00.5]}
4. g3 {[%clk 0:02:55.1]} 4... Bb4+ {[%clk 0:02:59.3]} 5. Bd2 {[%clk 0:02:54.3]}
5... a5 {[%clk 0:02:59.6]} 6. Bg2 {[%clk 0:02:53.9]} 6... O-O {[%clk 0:02:59.4]}
7. Qb3 {[%clk 0:02:46.4]} 7... c5 {[%clk 0:02:35]} 8. O-O {[%clk 0:02:39.3]}
8... Nc6 {[%clk 0:02:30.6]} 9. dxc5 {[%clk 0:02:36]} 9... d4 {[%clk 0:02:22.5]}
10. Bxb4 {[%clk 0:02:16.3]} 10... axb4 {[%clk 0:02:21.5]} 11. Nbd2 {[%clk
0:02:11.2]} 11... e5 {[%clk 0:02:11.9]} 12. Ng5 {[%clk 0:01:57.8]} 12... Nd7
{[%clk 0:02:11.6]} 13. Nge4 {[%clk 0:01:55.4]} 13... f5 {[%clk 0:02:11.5]} 14.
a3 {[%clk 0:01:41]} 14... fxe4 {[%clk 0:02:09.3]} 15. Nxe4 {[%clk 0:01:41.1]}
15... bxa3 {[%clk 0:02:07.6]} 16. bxa3 {[%clk 0:01:37]} 16... Qe7 {[%clk
0:02:02.2]} 17. Nd6 {[%clk 0:01:11.1]} 17... Nxc5 {[%clk 0:01:59.6]} 18. Nxc8
{[%clk 0:01:11.2]} 18... Rfxc8 {[%clk 0:01:46.2]} 19. Qc2 {[%clk 0:01:10.6]}
19... e4 {[%clk 0:01:45.4]} 20. Rfd1 {[%clk 0:01:04.9]} 20... Rf8 {[%clk
0:01:39.2]} 21. e3 {[%clk 0:00:54.7]} 21... d3 {[%clk 0:01:38.5]} 22. Qc3 {[%clk
0:00:52.6]} 22... Qf7 {[%clk 0:01:34.8]} 23. Rd2 {[%clk 0:00:51.7]} 23... Ra4
{[%clk 0:01:34.9]} 24. Rc1 {[%clk 0:00:32]} 24... Na5 {[%clk 0:01:31.7]} 25. Qd4
{[%clk 0:00:29.2]} 25... Rxc4 {[%clk 0:01:30.4]} 26. Rxc4 {[%clk 0:00:27]} 26...
Qxc4 {[%clk 0:01:31.3]} 27. Qd6 {[%clk 0:00:22.6]} 27... Qc1+ {[%clk 0:01:27.2]}
0-1

[Event "Early-Titled-Tuesday-Blitz-April-02-2024"]
[Site "Chess.com"]
[Date "2024.04.02"]
[Round "1"]
[White "Payyappat"]
[Black "rezamahdavi2008"]
[Result "1-0"]
[WhiteElo "2531"]
[BlackElo "2890"]
[TimeControl "180+1"]
[EndTime "8:05:27 PDT"]
[Termination "Payyappat won by resignation"]

1. e4 {[%clk 0:03:00.9]} 1... c5 {[%clk 0:02:59.6]} 2. Nf3 {[%clk 0:03:01.3]}
2... d6 {[%clk 0:02:55.7]} 3. d4 {[%clk 0:03:02.2]} 3... cxd4 {[%clk 0:02:56.4]}
4. Nxd4 {[%clk 0:03:03.1]} 4... Nf6 {[%clk 0:02:57]} 5. Nc3 {[%clk 0:03:03.7]}
5... a6 {[%clk 0:02:57.7]} 6. h4 {[%clk 0:03:02.9]} 6... e5 {[%clk 0:02:45.5]}
7. Nb3 {[%clk 0:02:55.8]} 7... Be7 {[%clk 0:02:29.6]} 8. Bg5 {[%clk 0:02:53.5]}
8... Be6 {[%clk 0:02:24.2]} 9. Bxf6 {[%clk 0:02:52.3]} 9... Bxf6 {[%clk
0:02:22.9]} 10. g3 {[%clk 0:02:51.9]} 10... Qd7 {[%clk 0:02:15.8]} 11. Qd2
{[%clk 0:02:49.7]} 11... b5 {[%clk 0:02:07.2]} 12. O-O-O {[%clk 0:02:46.5]}
12... Be7 {[%clk 0:02:07.3]} 13. f4 {[%clk 0:02:42.3]} 13... Nc6 {[%clk
0:01:57.8]} 14. f5 {[%clk 0:02:38.5]} 14... Bxb3 {[%clk 0:01:57.5]} 15. axb3
{[%clk 0:02:38.6]} 15... Nd4 {[%clk 0:01:58.4]} 16. Nd5 {[%clk 0:02:34.9]} 16...
O-O {[%clk 0:01:56.1]} 17. Kb1 {[%clk 0:02:27.4]} 17... Bd8 {[%clk 0:01:56.3]}
18. g4 {[%clk 0:02:26.3]} 18... a5 {[%clk 0:01:56.3]} 19. g5 {[%clk 0:02:21.6]}
19... b4 {[%clk 0:01:56.4]} 20. g6 {[%clk 0:02:09.1]} 20... a4 {[%clk
0:01:51.8]} 21. Qxb4 {[%clk 0:01:30.7]} 21... axb3 {[%clk 0:01:50.7]} 22. Rxd4
{[%clk 0:01:27.7]} 22... bxc2+ {[%clk 0:01:34]} 23. Kxc2 {[%clk 0:01:25.7]}
23... exd4 {[%clk 0:01:34.7]} 24. gxf7+ {[%clk 0:01:14.6]} 24... Kh8 {[%clk
0:01:34.9]} 25. Bc4 {[%clk 0:01:11.8]} 25... Rc8 {[%clk 0:01:30.5]} 26. Kd3
{[%clk 0:01:07.2]} 26... Qxf7 {[%clk 0:01:29.2]} 27. Nf4 {[%clk 0:01:01]} 27...
Qa7 {[%clk 0:01:12.4]} 28. h5 {[%clk 0:00:56.6]} 28... Rb8 {[%clk 0:01:07.1]}
29. Ng6+ {[%clk 0:00:55.6]} 1-0